[Event "*** SCC Grand Prix: Titled Tuesday Blitz"]
[Site "Chess.com"]
[Date "2020.07.07"]
[Round "7"]
[White "Larina_Marija"]
[Black "WeAintSurePal"]
[Result "1-0"]
[WhiteElo "2109"]
[BlackElo "2279"]
[TimeControl "180+1"]
[EndTime "11:19:30 PDT"]
[Termination "Larina_Marija won by checkmate"]

1. e4 {[%clk 0:03:00]} 1... c6 {[%clk 0:02:58.8]} 2. d4 {[%clk 0:02:59.4]} 2...
d5 {[%clk 0:02:59.3]} 3. Nd2 {[%clk 0:03:00]} 3... dxe4 {[%clk 0:02:58.3]} 4.
Nxe4 {[%clk 0:03:00.9]} 4... Nf6 {[%clk 0:02:59.2]} 5. Nxf6+ {[%clk 0:03:01.3]}
5... exf6 {[%clk 0:03:00.1]} 6. c3 {[%clk 0:03:01.5]} 6... Be6 {[%clk
0:02:56.6]} 7. Bd3 {[%clk 0:02:55.1]} 7... Bd6 {[%clk 0:02:56.8]} 8. Qc2 {[%clk
0:02:53.1]} 8... Nd7 {[%clk 0:02:57]} 9. f4 {[%clk 0:02:48.8]} 9... Nf8 {[%clk
0:02:54.2]} 10. f5 {[%clk 0:02:47.1]} 10... Bd7 {[%clk 0:02:54.4]} 11. Ne2
{[%clk 0:02:43.1]} 11... Qc7 {[%clk 0:02:53.6]} 12. c4 {[%clk 0:02:39.2]} 12...
Bxh2 {[%clk 0:02:49.4]} 13. Kf2 {[%clk 0:02:33.2]} 13... h5 {[%clk 0:02:36.3]}
14. c5 {[%clk 0:02:06.6]} 14... h4 {[%clk 0:02:35]} 15. Rxh2 {[%clk 0:01:58.3]}
15... Qxh2 {[%clk 0:02:25.7]} 16. Bf4 {[%clk 0:01:57.9]} 16... Qxf4+ {[%clk
0:02:16]} 17. Nxf4 {[%clk 0:01:57.4]} 17... O-O-O {[%clk 0:02:16.9]} 18. a4
{[%clk 0:01:35.7]} 18... g5 {[%clk 0:02:05.9]} 19. fxg6 {[%clk 0:01:34.7]} 19...
fxg6 {[%clk 0:02:06]} 20. Nxg6 {[%clk 0:01:32.6]} 20... Nxg6 {[%clk 0:02:06]}
21. Bxg6 {[%clk 0:01:32.5]} 21... h3 {[%clk 0:02:06.5]} 22. Bf5 {[%clk
0:01:23.7]} 22... hxg2 {[%clk 0:02:02.3]} 23. Bxd7+ {[%clk 0:01:06.4]} 23...
Rxd7 {[%clk 0:02:01.8]} 24. Kxg2 {[%clk 0:01:02.7]} 24... Rg7+ {[%clk 0:02:01]}
25. Kf3 {[%clk 0:00:56.5]} 25... Rh3+ {[%clk 0:01:58.9]} 26. Ke4 {[%clk
0:00:54.2]} 26... Rg5 {[%clk 0:01:47.8]} 27. Rf1 {[%clk 0:00:43.3]} 27... Rh4+
{[%clk 0:01:29.6]} 28. Rf4 {[%clk 0:00:42.2]} 28... Rh1 {[%clk 0:01:27.6]} 29.
Qf2 {[%clk 0:00:29.7]} 29... Rhg1 {[%clk 0:01:08]} 30. Rxf6 {[%clk 0:00:28.5]}
30... R1g4+ {[%clk 0:01:07.5]} 31. Rf4 {[%clk 0:00:28.5]} 31... Rxf4+ {[%clk
0:00:54.2]} 32. Qxf4 {[%clk 0:00:27.7]} 32... Rd5 {[%clk 0:00:55.1]} 33. Qf8+
{[%clk 0:00:24.2]} 33... Kc7 {[%clk 0:00:55.4]} 34. Qe7+ {[%clk 0:00:24.6]}
34... Kc8 {[%clk 0:00:55.7]} 35. Qe6+ {[%clk 0:00:23.6]} 35... Kc7 {[%clk
0:00:55.6]} 36. Qxd5 {[%clk 0:00:20.8]} 36... cxd5+ {[%clk 0:00:56.5]} 37. Kxd5
{[%clk 0:00:21.3]} 37... Kd7 {[%clk 0:00:56.8]} 38. b4 {[%clk 0:00:21]} 38... a6
{[%clk 0:00:52.8]} 39. b5 {[%clk 0:00:20.8]} 39... Kc7 {[%clk 0:00:48.2]} 40.
Ke6 {[%clk 0:00:17]} 40... Kc8 {[%clk 0:00:47.4]} 41. d5 {[%clk 0:00:16.2]}
41... Kc7 {[%clk 0:00:45.1]} 42. d6+ {[%clk 0:00:16.2]} 42... Kd8 {[%clk
0:00:44.9]} 43. c6 {[%clk 0:00:15.7]} 43... bxc6 {[%clk 0:00:42.2]} 44. bxc6
{[%clk 0:00:16.6]} 44... Kc8 {[%clk 0:00:40.1]} 45. Ke7 {[%clk 0:00:17]} 45...
Kb8 {[%clk 0:00:40.4]} 46. d7 {[%clk 0:00:17.1]} 46... Ka7 {[%clk 0:00:41.3]}
47. d8=Q {[%clk 0:00:16.3]} 47... a5 {[%clk 0:00:41.8]} 48. Qxa5+ {[%clk
0:00:15.9]} 48... Kb8 {[%clk 0:00:41.6]} 49. Qb6+ {[%clk 0:00:16.3]} 49... Kc8
{[%clk 0:00:41.8]} 50. Qb7# {[%clk 0:00:16.6]} 1-0

[Event "*** SCC Grand Prix: Titled Tuesday Blitz"]
[Site "Chess.com"]
[Date "2020.07.07"]
[Round "7"]
[White "sertalzin"]
[Black "sri5996"]
[Result "0-1"]
[WhiteElo "2028"]
[BlackElo "2289"]
[TimeControl "180+1"]
[EndTime "11:19:31 PDT"]
[Termination "sri5996 won on time"]

1. d4 {[%clk 0:03:00.9]} 1... Nf6 {[%clk 0:02:59.5]} 2. c4 {[%clk 0:03:01.1]}
2... e6 {[%clk 0:03:00.1]} 3. Nc3 {[%clk 0:03:01.4]} 3... Bb4 {[%clk 0:03:00.6]}
4. e3 {[%clk 0:03:01.7]} 4... O-O {[%clk 0:03:00.5]} 5. Ne2 {[%clk 0:03:02]}
5... Re8 {[%clk 0:03:01]} 6. a3 {[%clk 0:03:02.1]} 6... Bf8 {[%clk 0:03:00.2]}
7. d5 {[%clk 0:03:01.8]} 7... a5 {[%clk 0:02:46.5]} 8. Ng3 {[%clk 0:02:58.2]}
8... Na6 {[%clk 0:02:43]} 9. Be2 {[%clk 0:02:57.1]} 9... Nc5 {[%clk 0:02:37.6]}
10. b3 {[%clk 0:02:54.9]} 10... a4 {[%clk 0:02:33.3]} 11. b4 {[%clk 0:02:44.9]}
11... Nb3 {[%clk 0:02:30.7]} 12. Rb1 {[%clk 0:02:44]} 12... Nxc1 {[%clk
0:02:29.4]} 13. Rxc1 {[%clk 0:02:41.5]} 13... exd5 {[%clk 0:02:29.3]} 14. cxd5
{[%clk 0:02:40.6]} 14... c5 {[%clk 0:02:28.4]} 15. b5 {[%clk 0:02:34.1]} 15...
d6 {[%clk 0:01:55.1]} 16. O-O {[%clk 0:02:29.8]} 16... g6 {[%clk 0:01:55.1]} 17.
e4 {[%clk 0:02:20.9]} 17... Bg7 {[%clk 0:01:53.7]} 18. f3 {[%clk 0:02:21.3]}
18... Qa5 {[%clk 0:01:45.5]} 19. Qc2 {[%clk 0:02:10.7]} 19... Bd7 {[%clk
0:01:39.7]} 20. Bc4 {[%clk 0:02:08.7]} 20... Re7 {[%clk 0:01:08.3]} 21. Rfd1
{[%clk 0:01:34.5]} 21... Be8 {[%clk 0:01:06]} 22. Nf1 {[%clk 0:01:19.8]} 22...
Nd7 {[%clk 0:01:03.6]} 23. Nd2 {[%clk 0:01:09.9]} 23... Bd4+ {[%clk 0:00:58]}
24. Kh1 {[%clk 0:01:08.3]} 24... Ne5 {[%clk 0:00:58.7]} 25. Bf1 {[%clk
0:01:01.6]} 25... b6 {[%clk 0:00:48.6]} 26. Nc4 {[%clk 0:00:58.6]} 26... Nxc4
{[%clk 0:00:40.6]} 27. Bxc4 {[%clk 0:00:57.7]} 27... Bxc3 {[%clk 0:00:27.9]} 28.
Qxc3 {[%clk 0:00:56.4]} 28... Bxb5 {[%clk 0:00:28.3]} 29. Bxb5 {[%clk
0:00:10.1]} 29... Qxb5 {[%clk 0:00:29.2]} 30. Rb1 {[%clk 0:00:09.7]} 30... Qa6
{[%clk 0:00:28.4]} 31. Qd3 {[%clk 0:00:07.4]} 31... Qxd3 {[%clk 0:00:27]} 32.
Rxd3 {[%clk 0:00:06.9]} 32... Rb7 {[%clk 0:00:27.6]} 33. Rb5 {[%clk 0:00:06.7]}
33... Ra5 {[%clk 0:00:24.5]} 34. Rxa5 {[%clk 0:00:05.8]} 34... bxa5 {[%clk
0:00:25.4]} 35. h3 {[%clk 0:00:04.6]} 35... Rb3 {[%clk 0:00:24.9]} 36. Rd1
{[%clk 0:00:02.9]} 36... Rxa3 {[%clk 0:00:25.2]} 37. Rb1 {[%clk 0:00:02.2]}
37... Rb3 {[%clk 0:00:24.9]} 38. Ra1 {[%clk 0:00:01.4]} 38... a3 {[%clk
0:00:25.3]} 39. Kh2 {[%clk 0:00:02.3]} 39... Kg7 {[%clk 0:00:25.3]} 0-1

[Event "*** SCC Grand Prix: Titled Tuesday Blitz"]
[Site "Chess.com"]
[Date "2020.07.07"]
[Round "7"]
[White "Mikasinski"]
[Black "1f3_2g41-0"]
[Result "1/2-1/2"]
[WhiteElo "2444"]
[BlackElo "2300"]
[TimeControl "180+1"]
[EndTime "11:19:33 PDT"]
[Termination "Game drawn by stalemate"]

1. e4 {[%clk 0:03:00.9]} 1... c5 {[%clk 0:02:59.6]} 2. Nf3 {[%clk 0:03:00.7]}
2... d6 {[%clk 0:02:59]} 3. d4 {[%clk 0:03:01.1]} 3... cxd4 {[%clk 0:02:59.9]}
4. Nxd4 {[%clk 0:03:01.7]} 4... Nf6 {[%clk 0:03:00.7]} 5. Nc3 {[%clk 0:03:01.9]}
5... a6 {[%clk 0:03:00.9]} 6. Be2 {[%clk 0:03:01.6]} 6... e5 {[%clk 0:03:01]} 7.
Nf3 {[%clk 0:03:01.9]} 7... Be7 {[%clk 0:03:01.4]} 8. Bg5 {[%clk 0:03:01.3]}
8... O-O {[%clk 0:03:01.8]} 9. Bxf6 {[%clk 0:03:01.1]} 9... Bxf6 {[%clk
0:03:02.7]} 10. Bc4 {[%clk 0:03:01.5]} 10... Be6 {[%clk 0:03:03]} 11. Bb3 {[%clk
0:03:01.7]} 11... Nc6 {[%clk 0:03:03.1]} 12. O-O {[%clk 0:03:00.9]} 12... Na5
{[%clk 0:03:00.6]} 13. Nd5 {[%clk 0:02:42.5]} 13... Rc8 {[%clk 0:02:54.1]} 14.
c3 {[%clk 0:02:35.2]} 14... Nc4 {[%clk 0:02:49.2]} 15. Bxc4 {[%clk 0:02:31.8]}
15... Rxc4 {[%clk 0:02:50.1]} 16. Qd3 {[%clk 0:02:27.2]} 16... b5 {[%clk
0:02:47.7]} 17. Rad1 {[%clk 0:02:21.3]} 17... Bg5 {[%clk 0:02:45.4]} 18. b3
{[%clk 0:01:43.2]} 18... Rc5 {[%clk 0:02:36.5]} 19. c4 {[%clk 0:01:10.2]} 19...
bxc4 {[%clk 0:02:27.5]} 20. bxc4 {[%clk 0:01:09.9]} 20... Bxd5 {[%clk
0:02:27.8]} 21. cxd5 {[%clk 0:01:09.1]} 21... Bh6 {[%clk 0:02:27.6]} 22. Qxa6
{[%clk 0:01:07.5]} 22... Ra5 {[%clk 0:02:20.4]} 23. Qc4 {[%clk 0:01:05.3]} 23...
Qa8 {[%clk 0:02:19.5]} 24. Ra1 {[%clk 0:00:56.9]} 24... Ra4 {[%clk 0:02:17]} 25.
Qe2 {[%clk 0:00:48.8]} 25... Rc8 {[%clk 0:02:13.4]} 26. Rfb1 {[%clk 0:00:47.6]}
26... g6 {[%clk 0:02:11]} 27. h3 {[%clk 0:00:45.5]} 27... Rcc4 {[%clk
0:02:04.9]} 28. Rb6 {[%clk 0:00:45.2]} 28... Rxe4 {[%clk 0:02:02.6]} 29. Qb5
{[%clk 0:00:45.3]} 29... Rab4 {[%clk 0:01:46.8]} 30. Qc6 {[%clk 0:00:32.5]}
30... Rxb6 {[%clk 0:01:45.8]} 31. Qxa8+ {[%clk 0:00:31.9]} 31... Kg7 {[%clk
0:01:44.6]} 32. a4 {[%clk 0:00:30]} 32... Reb4 {[%clk 0:01:41.5]} 33. a5 {[%clk
0:00:28.6]} 33... Rb8 {[%clk 0:01:41.4]} 34. Qc6 {[%clk 0:00:26]} 34... Bf4
{[%clk 0:01:40.8]} 35. g3 {[%clk 0:00:24.1]} 35... Bh6 {[%clk 0:01:37.7]} 36.
Qxd6 {[%clk 0:00:23.7]} 36... e4 {[%clk 0:01:36.4]} 37. Nh2 {[%clk 0:00:12.9]}
37... e3 {[%clk 0:01:36.3]} 38. Qe5+ {[%clk 0:00:10.5]} 38... Kg8 {[%clk
0:01:36.4]} 39. fxe3 {[%clk 0:00:10.3]} 39... Bg7 {[%clk 0:01:36.7]} 40. Qxb8+
{[%clk 0:00:06.9]} 40... Rxb8 {[%clk 0:01:36]} 41. Ra2 {[%clk 0:00:07.5]} 41...
Be5 {[%clk 0:01:34.5]} 42. Kg2 {[%clk 0:00:07]} 42... Kf8 {[%clk 0:01:34.8]} 43.
Ng4 {[%clk 0:00:06.8]} 43... Bd6 {[%clk 0:01:34.5]} 44. a6 {[%clk 0:00:07.1]}
44... Ke7 {[%clk 0:01:33.8]} 45. e4 {[%clk 0:00:07.5]} 45... f5 {[%clk
0:01:33.5]} 46. exf5 {[%clk 0:00:07.1]} 46... gxf5 {[%clk 0:01:34.4]} 47. Ne3
{[%clk 0:00:07.7]} 47... Kf6 {[%clk 0:01:34.8]} 48. Nc4 {[%clk 0:00:07.9]} 48...
Bc5 {[%clk 0:01:35.1]} 49. d6 {[%clk 0:00:08]} 49... Ke6 {[%clk 0:01:34.9]} 50.
Re2+ {[%clk 0:00:07.4]} 50... Kd5 {[%clk 0:01:35.2]} 51. Ne3+ {[%clk 0:00:04.7]}
51... Bxe3 {[%clk 0:01:34.2]} 52. Rxe3 {[%clk 0:00:05.1]} 52... Kxd6 {[%clk
0:01:34.8]} 53. Ra3 {[%clk 0:00:04.7]} 53... Ke5 {[%clk 0:01:31.9]} 54. a7
{[%clk 0:00:04.9]} 54... Ra8 {[%clk 0:01:32.2]} 55. Kf3 {[%clk 0:00:05.6]} 55...
h5 {[%clk 0:01:30.5]} 56. Ra5+ {[%clk 0:00:05.7]} 56... Ke6 {[%clk 0:01:29.5]}
57. Kf4 {[%clk 0:00:06]} 57... h4 {[%clk 0:01:27]} 58. gxh4 {[%clk 0:00:05.7]}
58... Kf6 {[%clk 0:01:27.4]} 59. Ra6+ {[%clk 0:00:05.8]} 59... Kg7 {[%clk
0:01:27]} 60. Kxf5 {[%clk 0:00:06.2]} 60... Kh7 {[%clk 0:01:27.3]} 61. h5 {[%clk
0:00:05.4]} 61... Kg7 {[%clk 0:01:27.1]} 62. Kg5 {[%clk 0:00:05.1]} 62... Kf7
{[%clk 0:01:27.2]} 63. h6 {[%clk 0:00:05.2]} 63... Rg8+ {[%clk 0:01:25.5]} 64.
Kh5 {[%clk 0:00:05.4]} 64... Ra8 {[%clk 0:01:26.1]} 65. h7 {[%clk 0:00:04.8]}
65... Kg7 {[%clk 0:01:26.1]} 66. Rh6 {[%clk 0:00:02.4]} 66... Kh8 {[%clk
0:01:24.2]} 67. h4 {[%clk 0:00:03]} 67... Rxa7 {[%clk 0:01:24]} 68. Kg6 {[%clk
0:00:03]} 68... Ra6+ {[%clk 0:01:24]} 69. Kg5 {[%clk 0:00:03.6]} 69... Rxh6
{[%clk 0:01:24.4]} 70. Kxh6 {[%clk 0:00:03.5]} 1/2-1/2

[Event "*** SCC Grand Prix: Titled Tuesday Blitz"]
[Site "Chess.com"]
[Date "2020.07.07"]
[Round "7"]
[White "FairChess_on_YouTube"]
[Black "Oneofmyturns"]
[Result "1-0"]
[WhiteElo "2992"]
[BlackElo "2719"]
[TimeControl "180+1"]
[EndTime "11:19:35 PDT"]
[Termination "FairChess_on_YouTube won by resignation"]

1. e4 {[%clk 0:03:00.9]} 1... e5 {[%clk 0:02:59.3]} 2. Nf3 {[%clk 0:03:00.5]}
2... Nc6 {[%clk 0:02:59.8]} 3. Nc3 {[%clk 0:02:58.6]} 3... Nf6 {[%clk
0:02:59.5]} 4. Bb5 {[%clk 0:02:59]} 4... Nd4 {[%clk 0:02:50.5]} 5. Bd3 {[%clk
0:02:58.6]} 5... Nxf3+ {[%clk 0:02:29.5]} 6. Qxf3 {[%clk 0:02:58.1]} 6... Bc5
{[%clk 0:02:25.9]} 7. Be2 {[%clk 0:02:48.9]} 7... d6 {[%clk 0:02:24.5]} 8. Qg3
{[%clk 0:02:47.1]} 8... O-O {[%clk 0:02:18.6]} 9. d3 {[%clk 0:02:46.9]} 9... c6
{[%clk 0:02:08.9]} 10. Bg5 {[%clk 0:02:41.3]} 10... Re8 {[%clk 0:01:54.7]} 11.
O-O-O {[%clk 0:02:33.2]} 11... Kf8 {[%clk 0:01:09.9]} 12. Rhf1 {[%clk
0:02:31.8]} 12... h6 {[%clk 0:01:09.7]} 13. Bd2 {[%clk 0:02:31.4]} 13... b5
{[%clk 0:00:58.9]} 14. f4 {[%clk 0:02:30.7]} 14... b4 {[%clk 0:00:59.3]} 15. Na4
{[%clk 0:02:28.8]} 15... Bd4 {[%clk 0:00:55.8]} 16. Bxb4 {[%clk 0:02:25.4]}
16... Rb8 {[%clk 0:00:54.8]} 17. Ba3 {[%clk 0:02:15]} 17... c5 {[%clk
0:00:47.6]} 18. fxe5 {[%clk 0:01:32.8]} 18... Bxe5 {[%clk 0:00:46.5]} 19. Qe1
{[%clk 0:01:33.3]} 19... Bd7 {[%clk 0:00:45.8]} 20. Nxc5 {[%clk 0:01:19.7]}
20... dxc5 {[%clk 0:00:40.3]} 21. d4 {[%clk 0:01:20.2]} 21... Nxe4 {[%clk
0:00:35.7]} 22. dxe5 {[%clk 0:01:14.3]} 22... Rxe5 {[%clk 0:00:26.4]} 23. Kb1
{[%clk 0:00:47.7]} 23... Qe7 {[%clk 0:00:22.8]} 24. Qa5 {[%clk 0:00:47.2]} 24...
Bf5 {[%clk 0:00:19.8]} 25. Bd3 {[%clk 0:00:39.4]} 25... Bg6 {[%clk 0:00:19.6]}
26. Ka1 {[%clk 0:00:27.7]} 26... Kg8 {[%clk 0:00:19.9]} 27. b3 {[%clk
0:00:23.7]} 27... Rg5 {[%clk 0:00:12.9]} 28. Rde1 {[%clk 0:00:17]} 28... Rxg2
{[%clk 0:00:05.9]} 29. Bb2 {[%clk 0:00:17.2]} 29... Re8 {[%clk 0:00:05]} 30. h4
{[%clk 0:00:15.1]} 30... Qxh4 {[%clk 0:00:03.7]} 31. Qxa7 {[%clk 0:00:15.1]}
31... Nd2 {[%clk 0:00:02.5]} 32. Rxe8+ {[%clk 0:00:14.2]} 32... Kh7 {[%clk
0:00:03.3]} 33. Qb8 {[%clk 0:00:12.9]} 33... Bxd3 {[%clk 0:00:03.4]} 34. Rh8+
{[%clk 0:00:10.7]} 34... Kg6 {[%clk 0:00:02.9]} 35. Qd6+ {[%clk 0:00:11.1]}
35... f6 {[%clk 0:00:03]} 36. Qxd3+ {[%clk 0:00:10.7]} 36... Qe4 {[%clk
0:00:03.7]} 37. Qxe4+ {[%clk 0:00:10.3]} 37... Nxe4 {[%clk 0:00:04.6]} 38. a4
{[%clk 0:00:09.5]} 38... Rxc2 {[%clk 0:00:03.5]} 39. Rc1 {[%clk 0:00:09.8]}
39... Nd2 {[%clk 0:00:04.4]} 40. Rxc2 {[%clk 0:00:09.8]} 1-0

[Event "*** SCC Grand Prix: Titled Tuesday Blitz"]
[Site "Chess.com"]
[Date "2020.07.07"]
[Round "7"]
[White "antoszu"]
[Black "politeplayer"]
[Result "1-0"]
[WhiteElo "2546"]
[BlackElo "2257"]
[TimeControl "180+1"]
[EndTime "11:19:35 PDT"]
[Termination "antoszu won on time"]

1. d4 {[%clk 0:03:00.9]} 1... Nf6 {[%clk 0:02:59.1]} 2. c4 {[%clk 0:03:00.8]}
2... g6 {[%clk 0:02:58.5]} 3. Nc3 {[%clk 0:03:00.7]} 3... Bg7 {[%clk 0:02:58.9]}
4. e4 {[%clk 0:03:00.8]} 4... d6 {[%clk 0:02:59.4]} 5. Be2 {[%clk 0:03:01.4]}
5... O-O {[%clk 0:02:59.3]} 6. Bg5 {[%clk 0:03:02]} 6... h6 {[%clk 0:02:50.8]}
7. Be3 {[%clk 0:03:01.5]} 7... c5 {[%clk 0:02:48.1]} 8. d5 {[%clk 0:03:01.7]}
8... e6 {[%clk 0:02:43.3]} 9. Qd2 {[%clk 0:02:58.8]} 9... exd5 {[%clk
0:02:37.7]} 10. exd5 {[%clk 0:02:59.7]} 10... h5 {[%clk 0:02:22.4]} 11. Bg5
{[%clk 0:02:47]} 11... Re8 {[%clk 0:02:16.8]} 12. Nf3 {[%clk 0:02:46.1]} 12...
Bg4 {[%clk 0:02:08.1]} 13. O-O {[%clk 0:02:44]} 13... Nbd7 {[%clk 0:01:59.9]}
14. Rfe1 {[%clk 0:02:32.3]} 14... a6 {[%clk 0:01:45.9]} 15. h3 {[%clk
0:02:15.8]} 15... Bxf3 {[%clk 0:01:43.1]} 16. Bxf3 {[%clk 0:02:16.7]} 16...
Rxe1+ {[%clk 0:01:35]} 17. Rxe1 {[%clk 0:02:16.6]} 17... Ne5 {[%clk 0:01:35.1]}
18. Be2 {[%clk 0:02:16.3]} 18... Qa5 {[%clk 0:01:30.8]} 19. f4 {[%clk
0:01:47.8]} 19... Ned7 {[%clk 0:01:24.7]} 20. f5 {[%clk 0:01:43.8]} 20... Re8
{[%clk 0:01:17]} 21. fxg6 {[%clk 0:01:42.5]} 21... fxg6 {[%clk 0:01:17]} 22. Rf1
{[%clk 0:01:42.7]} 22... Nh7 {[%clk 0:00:58.3]} 23. Bf4 {[%clk 0:01:33.4]} 23...
Bd4+ {[%clk 0:00:49.6]} 24. Kh2 {[%clk 0:01:28.6]} 24... Be5 {[%clk 0:00:34.7]}
25. Bd3 {[%clk 0:01:16.2]} 25... Nhf8 {[%clk 0:00:18.5]} 26. Qc2 {[%clk
0:00:49.2]} 26... Bxf4+ {[%clk 0:00:14.6]} 27. Rxf4 {[%clk 0:00:50.1]} 27... Ne5
{[%clk 0:00:13.7]} 28. Ne4 {[%clk 0:00:50.5]} 28... Re7 {[%clk 0:00:08.6]} 29.
Ng5 {[%clk 0:00:47.5]} 29... Qe1 {[%clk 0:00:06.7]} 30. Be4 {[%clk 0:00:31.1]}
30... Qe3 {[%clk 0:00:06.3]} 31. g3 {[%clk 0:00:20.6]} 31... Nh7 {[%clk
0:00:04.9]} 32. Nxh7 {[%clk 0:00:20]} 32... Kxh7 {[%clk 0:00:04.9]} 33. b3
{[%clk 0:00:19.1]} 33... b5 {[%clk 0:00:04.2]} 34. Rf6 {[%clk 0:00:17.1]} 34...
bxc4 {[%clk 0:00:03.3]} 35. Bxg6+ {[%clk 0:00:16.6]} 35... Kg7 {[%clk
0:00:03.4]} 36. Rxd6 {[%clk 0:00:13.5]} 36... cxb3 {[%clk 0:00:01.7]} 37. Qb2
{[%clk 0:00:08.7]} 1-0

[Event "*** SCC Grand Prix: Titled Tuesday Blitz"]
[Site "Chess.com"]
[Date "2020.07.07"]
[Round "7"]
[White "m_ezat"]
[Black "BogdanDeac"]
[Result "0-1"]
[WhiteElo "2531"]
[BlackElo "2801"]
[TimeControl "180+1"]
[EndTime "11:19:36 PDT"]
[Termination "BogdanDeac won by checkmate"]

1. d4 {[%clk 0:03:00.9]} 1... d5 {[%clk 0:02:58.4]} 2. c4 {[%clk 0:03:01.2]}
2... e6 {[%clk 0:02:58.5]} 3. Nc3 {[%clk 0:03:00.7]} 3... c6 {[%clk 0:02:58.2]}
4. e4 {[%clk 0:03:00.2]} 4... dxe4 {[%clk 0:02:57.4]} 5. Nxe4 {[%clk 0:03:00.7]}
5... Bb4+ {[%clk 0:02:58]} 6. Bd2 {[%clk 0:03:00.3]} 6... Qxd4 {[%clk
0:02:57.9]} 7. Bxb4 {[%clk 0:03:00.5]} 7... Qxe4+ {[%clk 0:02:58.4]} 8. Be2
{[%clk 0:03:01.2]} 8... Nd7 {[%clk 0:02:06.9]} 9. Nf3 {[%clk 0:02:26.9]} 9... c5
{[%clk 0:01:57.3]} 10. Bc3 {[%clk 0:02:24.9]} 10... Ngf6 {[%clk 0:01:57.1]} 11.
Qd6 {[%clk 0:01:46.2]} 11... Qc6 {[%clk 0:01:40.6]} 12. Qg3 {[%clk 0:01:11.8]}
12... O-O {[%clk 0:01:36.6]} 13. Ne5 {[%clk 0:01:10.8]} 13... Nxe5 {[%clk
0:01:36.6]} 14. Bxe5 {[%clk 0:01:08.2]} 14... Ne8 {[%clk 0:01:37.1]} 15. O-O
{[%clk 0:01:04.8]} 15... f6 {[%clk 0:01:36.5]} 16. Bc3 {[%clk 0:01:04.8]} 16...
e5 {[%clk 0:01:33]} 17. Bf3 {[%clk 0:01:04]} 17... Qb6 {[%clk 0:01:33]} 18. Rad1
{[%clk 0:01:00]} 18... Be6 {[%clk 0:01:32.3]} 19. b3 {[%clk 0:00:58.8]} 19...
Nd6 {[%clk 0:01:28.8]} 20. Bg4 {[%clk 0:00:21.3]} 20... Ne4 {[%clk 0:01:14.6]}
21. Bxe6+ {[%clk 0:00:19.1]} 21... Qxe6 {[%clk 0:01:15.5]} 22. Qe3 {[%clk
0:00:19.1]} 22... Nxc3 {[%clk 0:01:12.5]} 23. Qxc3 {[%clk 0:00:19.1]} 23... Rfd8
{[%clk 0:01:13]} 24. Rxd8+ {[%clk 0:00:10.8]} 24... Rxd8 {[%clk 0:01:12.2]} 25.
h3 {[%clk 0:00:10.5]} 25... b6 {[%clk 0:01:09.9]} 26. Qf3 {[%clk 0:00:10.2]}
26... h6 {[%clk 0:01:00.2]} 27. Qb7 {[%clk 0:00:09.8]} 27... Qd7 {[%clk
0:00:59.4]} 28. Qe4 {[%clk 0:00:09.7]} 28... Qc7 {[%clk 0:00:57.1]} 29. Qf5
{[%clk 0:00:09.3]} 29... Rd4 {[%clk 0:00:55]} 30. f4 {[%clk 0:00:09.1]} 30...
exf4 {[%clk 0:00:48.4]} 31. Qe6+ {[%clk 0:00:08.7]} 31... Kf8 {[%clk 0:00:45.4]}
32. Re1 {[%clk 0:00:07.1]} 32... Qd7 {[%clk 0:00:43.3]} 33. Qe2 {[%clk
0:00:05.3]} 33... Kg8 {[%clk 0:00:36.7]} 34. Qf3 {[%clk 0:00:05.1]} 34... Rd2
{[%clk 0:00:32.3]} 35. Qa8+ {[%clk 0:00:04.3]} 35... Kh7 {[%clk 0:00:29.4]} 36.
Qe4+ {[%clk 0:00:04]} 36... f5 {[%clk 0:00:29.4]} 37. Qxf4 {[%clk 0:00:04.1]}
37... Rxa2 {[%clk 0:00:29.7]} 38. Kh2 {[%clk 0:00:02]} 38... Rb2 {[%clk
0:00:20.7]} 39. Qb8 {[%clk 0:00:01.9]} 39... Qd2 {[%clk 0:00:17.7]} 40. Re8
{[%clk 0:00:02.6]} 40... Qxg2# {[%clk 0:00:17.5]} 0-1